Workbook

Sheet SkillConfig
A1: ID | D1: scriptName | E1: IDGroup | F1: cd | G1: SkillType | H1: level | I1: name | J1: effectValue
A2: int | C2: 使用神器 | D2: string | E2: int | F2: int | G2: int | H2: int | I2: int | J2: float[]
C3: =SUBTOTAL(3,C6:C9231) -> 0
A4: 技能ID IDGroup+技能等级 | B4: 所属英雄名字 （策划用） | C4: 所属英雄ID （策划用） | D4: 脚本名称 | E4: 技能序列 所属英雄ID+技能类型 潜规则5=远程普攻 | F4: 技能Cd,普攻没有CD | G4: 技能类型: 1= 基础 2= 小招 3= 大招 4= 被动 5= 觉醒新技能效果|专属遗物效果 6 =职业被动 7 =神器光明强化 8 =神器黑暗强化 | H4: 等级 | I4: 名称语言表ID | J4: 效果值
A5: 10011 | B5: 普通攻击技能 | D5: NormalSkill | E5: 1001 | G5: 1 | H5: 1 | I5: 405077 | J5: 100
A6: 100011 | B6: 旋风斩 | D6: S10001 | E6: 1001 | F6: 3 | G6: 2 | H6: 1 | I6: 405077 | J6: 200
A7: 300011 | B7: 火焰烧烤 | D7: S30001 | E7: 1001 | F7: 5 | G7: 2 | H7: 1 | I7: 405077 | J7: 200;3
A8: 200011 | B8: 全体治疗 | D8: S20001 | E8: 1001 | F8: 3 | G8: 2 | H8: 1 | I8: 405077 | J8: 20
A9: 400011 | B9: 连续射击 | D9: S40001 | E9: 1001 | F9: 3 | G9: 2 | H9: 1 | I9: 405077 | J9: 200
A10: 1100011 | B10: 大蛇第一个技能，对敌人照成伤害，并将敌人击退一段距离 | D10: S110001 | E10: 1001 | F10: 3 | G10: 2 | H10: 1 | I10: 405077 | J10: 200
A11: 1100021 | B11: 大蛇第一个技能，对敌人照成伤害，并将敌人击退一段距离 | D11: S110002 | E11: 1001 | F11: 3 | G11: 2 | H11: 1 | I11: 405077 | J11: 50

Sheet 乱来
A1: ID | B1: 值
A2: 1 | B2: 330 | C2: =(RANK(B2,B$2:B$64,1)-1)/3 -> 19 | D2: =140+C2*10 -> 330 | H2: 120 | I2: 120
A3: 2 | B3: 330 | C3: =(RANK(B3,B$2:B$64,1)-1)/3 -> 19 | D3: =140+C3*10 -> 330 | H3: =H2*1.3 -> 156 | I3: =I2+30 -> 150
A4: 3 | B4: 330 | C4: 19 | D4: 330 | H4: =H3*1.3 -> 202.8 | I4: =I3+30 -> 180
A5: 4 | B5: 240 | C5: 7 | D5: 210 | H5: =H4*1.3 -> 263.64 | I5: 210
A6: 5 | B6: 240 | C6: 7 | D6: 210
A7: 6 | B7: 240 | C7: 7 | D7: 210
A8: 7 | B8: 220 | C8: 5 | D8: 190
A9: 8 | B9: 220 | C9: 5 | D9: 190
A10: 9 | B10: 220 | C10: 5 | D10: 190
A11: 10 | B11: 200 | C11: 1 | D11: 150
A12: 11 | B12: 200 | C12: 1 | D12: 150
A13: 12 | B13: 200 | C13: 1 | D13: 150
A14: 13 | B14: 280 | C14: 14 | D14: 280
A15: 14 | B15: 280 | C15: 14 | D15: 280
A16: 15 | B16: 280 | C16: 14 | D16: 280
A17: 16 | B17: 240 | C17: 7 | D17: 210
A18: 17 | B18: 240 | C18: 7 | D18: 210
A19: 18 | B19: 240 | C19: 7 | D19: 210
A20: 19 | B20: 220 | C20: 5 | D20: 190
A21: 20 | B21: 220 | C21: 5 | D21: 190
A22: 21 | B22: 220 | C22: 5 | D22: 190
A23: 22 | B23: 320 | C23: 18 | D23: 320
A24: 23 | B24: 320 | C24: 18 | D24: 320
A25: 24 | B25: 320 | C25: 18 | D25: 320
A26: 25 | B26: 270 | C26: 13 | D26: 270
A27: 26 | B27: 270 | C27: 13 | D27: 270
A28: 27 | B28: 270 | C28: 13 | D28: 270
A29: 28 | B29: 340 | C29: 20 | D29: 340
A30: 29 | B30: 340 | C30: 20 | D30: 340
A31: 30 | B31: 340 | C31: 20 | D31: 340
A32: 31 | B32: 250 | C32: 12 | D32: 260
A33: 32 | B33: 250 | C33: 12 | D33: 260
A34: 33 | B34: 250 | C34: 12 | D34: 260
A35: 34 | B35: 290 | C35: 16 | D35: 300
A36: 35 | B36: 290 | C36: 16 | D36: 300
A37: 36 | B37: 290 | C37: 16 | D37: 300
A38: 37 | B38: 300 | C38: 17 | D38: 310
A39: 38 | B39: 300 | C39: 17 | D39: 310
A40: 39 | B40: 300 | C40: 17 | D40: 310
A41: 40 | B41: 280 | C41: 14 | D41: 280
A42: 41 | B42: 280 | C42: 14 | D42: 280
A43: 42 | B43: 280 | C43: 14 | D43: 280
A44: 43 | B44: 210 | C44: 3 | D44: 170
A45: 44 | B45: 210 | C45: 3 | D45: 170
A46: 45 | B46: 210 | C46: 3 | D46: 170
A47: 46 | B47: 240 | C47: 7 | D47: 210
A48: 47 | B48: 240 | C48: 7 | D48: 210
A49: 48 | B49: 240 | C49: 7 | D49: 210
A50: 49 | B50: 240 | C50: 7 | D50: 210
A51: 50 | B51: 240 | C51: 7 | D51: 210
A52: 51 | B52: 240 | C52: 7 | D52: 210
A53: 52 | B53: 200 | C53: 1 | D53: 150
A54: 53 | B54: 200 | C54: 1 | D54: 150
A55: 54 | B55: 200 | C55: 1 | D55: 150
A56: 55 | B56: 190 | C56: 0 | D56: 140
A57: 56 | B57: 190 | C57: 0 | D57: 140
A58: 57 | B58: 190 | C58: 0 | D58: 140
A59: 58 | B59: 240 | C59: 7 | D59: 210
A60: 59 | B60: 240 | C60: 7 | D60: 210
A61: 60 | B61: 240 | C61: 7 | D61: 210
A62: 61 | B62: 210 | C62: 3 | D62: 170
A63: 62 | B63: 210 | C63: 3 | D63: 170
A64: 63 | B64: 210 | C64: 3 | D64: 170

Sheet 技能辅助
A1: 技能ID | B1: 技能类型 | C1: 技能CD | D1: 技能描述
A2: =INT(SkillConfig!#REF!) ->  | B2: =SkillConfig!#REF! ->  | C2: =SkillConfig!#REF! ->  | D2: =SkillConfig!#REF! -> 
A3: =INT(SkillConfig!#REF!) ->  | B3: =SkillConfig!#REF! ->  | C3: =SkillConfig!#REF! ->  | D3: =SkillConfig!#REF! -> 
A4: =INT(SkillConfig!#REF!) ->  | B4: =SkillConfig!#REF! ->  | C4: =SkillConfig!#REF! ->  | D4: =SkillConfig!#REF! -> 
A5: =INT(SkillConfig!#REF!) ->  | B5: =SkillConfig!#REF! ->  | C5: =SkillConfig!#REF! ->  | D5: =SkillConfig!#REF! -> 
A6: =INT(SkillConfig!#REF!) ->  | B6: =SkillConfig!#REF! ->  | C6: =SkillConfig!#REF! ->  | D6: =SkillConfig!#REF! -> 
A7: =INT(SkillConfig!#REF!) ->  | B7: =SkillConfig!#REF! ->  | C7: =SkillConfig!#REF! ->  | D7: =SkillConfig!#REF! -> 
A8: =INT(SkillConfig!#REF!) ->  | B8: =SkillConfig!#REF! ->  | C8: =SkillConfig!#REF! ->  | D8: =SkillConfig!#REF! -> 
A9: =INT(SkillConfig!#REF!) ->  | B9: =SkillConfig!#REF! ->  | C9: =SkillConfig!#REF! ->  | D9: =SkillConfig!#REF! -> 
A10: =INT(SkillConfig!#REF!) ->  | B10: =SkillConfig!#REF! ->  | C10: =SkillConfig!#REF! ->  | D10: =SkillConfig!#REF! -> 
A11: =INT(SkillConfig!#REF!) ->  | B11: =SkillConfig!#REF! ->  | C11: =SkillConfig!#REF! ->  | D11: =SkillConfig!#REF! -> 
A12: =INT(SkillConfig!#REF!) ->  | B12: =SkillConfig!#REF! ->  | C12: =SkillConfig!#REF! ->  | D12: =SkillConfig!#REF! -> 
A13: =INT(SkillConfig!#REF!) ->  | B13: =SkillConfig!#REF! ->  | C13: =SkillConfig!#REF! ->  | D13: =SkillConfig!#REF! -> 
A14: =INT(SkillConfig!#REF!) ->  | B14: =SkillConfig!#REF! ->  | C14: =SkillConfig!#REF! ->  | D14: =SkillConfig!#REF! -> 
A15: =INT(SkillConfig!#REF!) ->  | B15: =SkillConfig!#REF! ->  | C15: =SkillConfig!#REF! ->  | D15: =SkillConfig!#REF! -> 
A16: =INT(SkillConfig!#REF!) ->  | B16: =SkillConfig!#REF! ->  | C16: =SkillConfig!#REF! ->  | D16: =SkillConfig!#REF! -> 
A17: =INT(SkillConfig!#REF!) ->  | B17: =SkillConfig!#REF! ->  | C17: =SkillConfig!#REF! ->  | D17: =SkillConfig!#REF! -> 
A18: =INT(SkillConfig!#REF!) ->  | B18: =SkillConfig!#REF! ->  | C18: =SkillConfig!#REF! ->  | D18: =SkillConfig!#REF! -> 
A19: =INT(SkillConfig!#REF!) ->  | B19: =SkillConfig!#REF! ->  | C19: =SkillConfig!#REF! ->  | D19: =SkillConfig!#REF! -> 
A20: =INT(SkillConfig!#REF!) ->  | B20: =SkillConfig!#REF! ->  | C20: =SkillConfig!#REF! ->  | D20: =SkillConfig!#REF! -> 
A21: =INT(SkillConfig!#REF!) ->  | B21: =SkillConfig!#REF! ->  | C21: =SkillConfig!#REF! ->  | D21: =SkillConfig!#REF! -> 
A22: =INT(SkillConfig!#REF!) ->  | B22: =SkillConfig!#REF! ->  | C22: =SkillConfig!#REF! ->  | D22: =SkillConfig!#REF! -> 
A23: =INT(SkillConfig!#REF!) ->  | B23: =SkillConfig!#REF! ->  | C23: =SkillConfig!#REF! ->  | D23: =SkillConfig!#REF! -> 
A24: =INT(SkillConfig!#REF!) ->  | B24: =SkillConfig!#REF! ->  | C24: =SkillConfig!#REF! ->  | D24: =SkillConfig!#REF! -> 
A25: =INT(SkillConfig!#REF!) ->  | B25: =SkillConfig!#REF! ->  | C25: =SkillConfig!#REF! ->  | D25: =SkillConfig!#REF! -> 
A26: =INT(SkillConfig!#REF!) ->  | B26: =SkillConfig!#REF! ->  | C26: =SkillConfig!#REF! ->  | D26: =SkillConfig!#REF! -> 
A27: =INT(SkillConfig!#REF!) ->  | B27: =SkillConfig!#REF! ->  | C27: =SkillConfig!#REF! ->  | D27: =SkillConfig!#REF! -> 
A28: =INT(SkillConfig!#REF!) ->  | B28: =SkillConfig!#REF! ->  | C28: =SkillConfig!#REF! ->  | D28: =SkillConfig!#REF! -> 
A29: =INT(SkillConfig!#REF!) ->  | B29: =SkillConfig!#REF! ->  | C29: =SkillConfig!#REF! ->  | D29: =SkillConfig!#REF! -> 
A30: =INT(SkillConfig!#REF!) ->  | B30: =SkillConfig!#REF! ->  | C30: =SkillConfig!#REF! ->  | D30: =SkillConfig!#REF! -> 
A31: =INT(SkillConfig!#REF!) ->  | B31: =SkillConfig!#REF! ->  | C31: =SkillConfig!#REF! ->  | D31: =SkillConfig!#REF! -> 
A32: =INT(SkillConfig!#REF!) ->  | B32: =SkillConfig!#REF! ->  | C32: =SkillConfig!#REF! ->  | D32: =SkillConfig!#REF! -> 
A33: =INT(SkillConfig!#REF!) ->  | B33: =SkillConfig!#REF! ->  | C33: =SkillConfig!#REF! ->  | D33: =SkillConfig!#REF! -> 
A34: =INT(SkillConfig!#REF!) ->  | B34: =SkillConfig!#REF! ->  | C34: =SkillConfig!#REF! ->  | D34: =SkillConfig!#REF! -> 
A35: =INT(SkillConfig!#REF!) ->  | B35: =SkillConfig!#REF! ->  | C35: =SkillConfig!#REF! ->  | D35: =SkillConfig!#REF! -> 
A36: =INT(SkillConfig!#REF!) ->  | B36: =SkillConfig!#REF! ->  | C36: =SkillConfig!#REF! ->  | D36: =SkillConfig!#REF! -> 
A37: =INT(SkillConfig!#REF!) ->  | B37: =SkillConfig!#REF! ->  | C37: =SkillConfig!#REF! ->  | D37: =SkillConfig!#REF! -> 
A38: =INT(SkillConfig!#REF!) ->  | B38: =SkillConfig!#REF! ->  | C38: =SkillConfig!#REF! ->  | D38: =SkillConfig!#REF! -> 
A39: =INT(SkillConfig!#REF!) ->  | B39: =SkillConfig!#REF! ->  | C39: =SkillConfig!#REF! ->  | D39: =SkillConfig!#REF! -> 
A40: =INT(SkillConfig!#REF!) ->  | B40: =SkillConfig!#REF! ->  | C40: =SkillConfig!#REF! ->  | D40: =SkillConfig!#REF! -> 
A41: =INT(SkillConfig!#REF!) ->  | B41: =SkillConfig!#REF! ->  | C41: =SkillConfig!#REF! ->  | D41: =SkillConfig!#REF! -> 
A42: =INT(SkillConfig!#REF!) ->  | B42: =SkillConfig!#REF! ->  | C42: =SkillConfig!#REF! ->  | D42: =SkillConfig!#REF! -> 
A43: =INT(SkillConfig!#REF!) ->  | B43: =SkillConfig!#REF! ->  | C43: =SkillConfig!#REF! ->  | D43: =SkillConfig!#REF! -> 
A44: =INT(SkillConfig!#REF!) ->  | B44: =SkillConfig!#REF! ->  | C44: =SkillConfig!#REF! ->  | D44: =SkillConfig!#REF! -> 
A45: =INT(SkillConfig!#REF!) ->  | B45: =SkillConfig!#REF! ->  | C45: =SkillConfig!#REF! ->  | D45: =SkillConfig!#REF! -> 
A46: =INT(SkillConfig!#REF!) ->  | B46: =SkillConfig!#REF! ->  | C46: =SkillConfig!#REF! ->  | D46: =SkillConfig!#REF! -> 
A47: =INT(SkillConfig!#REF!) ->  | B47: =SkillConfig!#REF! ->  | C47: =SkillConfig!#REF! ->  | D47: =SkillConfig!#REF! -> 
A48: =INT(SkillConfig!#REF!) ->  | B48: =SkillConfig!#REF! ->  | C48: =SkillConfig!#REF! ->  | D48: =SkillConfig!#REF! -> 
A49: =INT(SkillConfig!#REF!) ->  | B49: =SkillConfig!#REF! ->  | C49: =SkillConfig!#REF! ->  | D49: =SkillConfig!#REF! -> 
A50: =INT(SkillConfig!#REF!) ->  | B50: =SkillConfig!#REF! ->  | C50: =SkillConfig!#REF! ->  | D50: =SkillConfig!#REF! -> 
A51: =INT(SkillConfig!#REF!) ->  | B51: =SkillConfig!#REF! ->  | C51: =SkillConfig!#REF! ->  | D51: =SkillConfig!#REF! -> 
A52: =INT(SkillConfig!#REF!) ->  | B52: =SkillConfig!#REF! ->  | C52: =SkillConfig!#REF! ->  | D52: =SkillConfig!#REF! -> 
A53: =INT(SkillConfig!#REF!) ->  | B53: =SkillConfig!#REF! ->  | C53: =SkillConfig!#REF! ->  | D53: =SkillConfig!#REF! -> 
A54: =INT(SkillConfig!#REF!) ->  | B54: =SkillConfig!#REF! ->  | C54: =SkillConfig!#REF! ->  | D54: =SkillConfig!#REF! -> 
A55: =INT(SkillConfig!#REF!) ->  | B55: =SkillConfig!#REF! ->  | C55: =SkillConfig!#REF! ->  | D55: =SkillConfig!#REF! -> 
A56: =INT(SkillConfig!#REF!) ->  | B56: =SkillConfig!#REF! ->  | C56: =SkillConfig!#REF! ->  | D56: =SkillConfig!#REF! -> 
A57: =INT(SkillConfig!#REF!) ->  | B57: =SkillConfig!#REF! ->  | C57: =SkillConfig!#REF! ->  | D57: =SkillConfig!#REF! -> 
A58: =INT(SkillConfig!#REF!) ->  | B58: =SkillConfig!#REF! ->  | C58: =SkillConfig!#REF! ->  | D58: =SkillConfig!#REF! -> 
A59: =INT(SkillConfig!#REF!) ->  | B59: =SkillConfig!#REF! ->  | C59: =SkillConfig!#REF! ->  | D59: =SkillConfig!#REF! -> 
A60: =INT(SkillConfig!#REF!) ->  | B60: =SkillConfig!#REF! ->  | C60: =SkillConfig!#REF! ->  | D60: =SkillConfig!#REF! -> 
A61: =INT(SkillConfig!#REF!) ->  | B61: =SkillConfig!#REF! ->  | C61: =SkillConfig!#REF! ->  | D61: =SkillConfig!#REF! -> 
A62: =INT(SkillConfig!#REF!) ->  | B62: =SkillConfig!#REF! ->  | C62: =SkillConfig!#REF! ->  | D62: =SkillConfig!#REF! -> 
A63: =INT(SkillConfig!#REF!) ->  | B63: =SkillConfig!#REF! ->  | C63: =SkillConfig!#REF! ->  | D63: =SkillConfig!#REF! -> 
A64: =INT(SkillConfig!#REF!) ->  | B64: =SkillConfig!#REF! ->  | C64: =SkillConfig!#REF! ->  | D64: =SkillConfig!#REF! -> 
A65: =INT(SkillConfig!#REF!) ->  | B65: =SkillConfig!#REF! ->  | C65: =SkillConfig!#REF! ->  | D65: =SkillConfig!#REF! -> 
A66: =INT(SkillConfig!#REF!) ->  | B66: =SkillConfig!#REF! ->  | C66: =SkillConfig!#REF! ->  | D66: =SkillConfig!#REF! -> 
A67: =INT(SkillConfig!#REF!) ->  | B67: =SkillConfig!#REF! ->  | C67: =SkillConfig!#REF! ->  | D67: =SkillConfig!#REF! -> 
A68: =INT(SkillConfig!#REF!) ->  | B68: =SkillConfig!#REF! ->  | C68: =SkillConfig!#REF! ->  | D68: =SkillConfig!#REF! -> 
A69: =INT(SkillConfig!#REF!) ->  | B69: =SkillConfig!#REF! ->  | C69: =SkillConfig!#REF! ->  | D69: =SkillConfig!#REF! -> 
A70: =INT(SkillConfig!#REF!) ->  | B70: =SkillConfig!#REF! ->  | C70: =SkillConfig!#REF! ->  | D70: =SkillConfig!#REF! -> 
A71: =INT(SkillConfig!#REF!) ->  | B71: =SkillConfig!#REF! ->  | C71: =SkillConfig!#REF! ->  | D71: =SkillConfig!#REF! -> 
A72: =INT(SkillConfig!#REF!) ->  | B72: =SkillConfig!#REF! ->  | C72: =SkillConfig!#REF! ->  | D72: =SkillConfig!#REF! -> 
A73: =INT(SkillConfig!#REF!) ->  | B73: =SkillConfig!#REF! ->  | C73: =SkillConfig!#REF! ->  | D73: =SkillConfig!#REF! -> 
A74: =INT(SkillConfig!#REF!) ->  | B74: =SkillConfig!#REF! ->  | C74: =SkillConfig!#REF! ->  | D74: =SkillConfig!#REF! -> 
A75: =INT(SkillConfig!#REF!) ->  | B75: =SkillConfig!#REF! ->  | C75: =SkillConfig!#REF! ->  | D75: =SkillConfig!#REF! -> 
A76: =INT(SkillConfig!#REF!) ->  | B76: =SkillConfig!#REF! ->  | C76: =SkillConfig!#REF! ->  | D76: =SkillConfig!#REF! -> 
A77: =INT(SkillConfig!#REF!) ->  | B77: =SkillConfig!#REF! ->  | C77: =SkillConfig!#REF! ->  | D77: =SkillConfig!#REF! -> 
A78: =INT(SkillConfig!#REF!) ->  | B78: =SkillConfig!#REF! ->  | C78: =SkillConfig!#REF! ->  | D78: =SkillConfig!#REF! -> 
A79: =INT(SkillConfig!#REF!) ->  | B79: =SkillConfig!#REF! ->  | C79: =SkillConfig!#REF! ->  | D79: =SkillConfig!#REF! -> 
A80: =INT(SkillConfig!#REF!) ->  | B80: =SkillConfig!#REF! ->  | C80: =SkillConfig!#REF! ->  | D80: =SkillConfig!#REF! -> 
A81: =INT(SkillConfig!#REF!) ->  | B81: =SkillConfig!#REF! ->  | C81: =SkillConfig!#REF! ->  | D81: =SkillConfig!#REF! -> 
A82: =INT(SkillConfig!#REF!) ->  | B82: =SkillConfig!#REF! ->  | C82: =SkillConfig!#REF! ->  | D82: =SkillConfig!#REF! -> 
A83: =INT(SkillConfig!#REF!) ->  | B83: =SkillConfig!#REF! ->  | C83: =SkillConfig!#REF! ->  | D83: =SkillConfig!#REF! -> 
A84: =INT(SkillConfig!#REF!) ->  | B84: =SkillConfig!#REF! ->  | C84: =SkillConfig!#REF! ->  | D84: =SkillConfig!#REF! -> 
A85: =INT(SkillConfig!#REF!) ->  | B85: =SkillConfig!#REF! ->  | C85: =SkillConfig!#REF! ->  | D85: =SkillConfig!#REF! -> 
A86: =INT(SkillConfig!#REF!) ->  | B86: =SkillConfig!#REF! ->  | C86: =SkillConfig!#REF! ->  | D86: =SkillConfig!#REF! -> 
A87: =INT(SkillConfig!#REF!) ->  | B87: =SkillConfig!#REF! ->  | C87: =SkillConfig!#REF! ->  | D87: =SkillConfig!#REF! -> 
A88: =INT(SkillConfig!#REF!) ->  | B88: =SkillConfig!#REF! ->  | C88: =SkillConfig!#REF! ->  | D88: =SkillConfig!#REF! -> 
A89: =INT(SkillConfig!#REF!) ->  | B89: =SkillConfig!#REF! ->  | C89: =SkillConfig!#REF! ->  | D89: =SkillConfig!#REF! -> 
A90: =INT(SkillConfig!#REF!) ->  | B90: =SkillConfig!#REF! ->  | C90: =SkillConfig!#REF! ->  | D90: =SkillConfig!#REF! -> 
A91: =INT(SkillConfig!#REF!) ->  | B91: =SkillConfig!#REF! ->  | C91: =SkillConfig!#REF! ->  | D91: =SkillConfig!#REF! -> 
A92: =INT(SkillConfig!#REF!) ->  | B92: =SkillConfig!#REF! ->  | C92: =SkillConfig!#REF! ->  | D92: =SkillConfig!#REF! -> 
A93: =INT(SkillConfig!#REF!) ->  | B93: =SkillConfig!#REF! ->  | C93: =SkillConfig!#REF! ->  | D93: =SkillConfig!#REF! -> 
A94: =INT(SkillConfig!#REF!) ->  | B94: =SkillConfig!#REF! ->  | C94: =SkillConfig!#REF! ->  | D94: =SkillConfig!#REF! -> 
A95: =INT(SkillConfig!#REF!) ->  | B95: =SkillConfig!#REF! ->  | C95: =SkillConfig!#REF! ->  | D95: =SkillConfig!#REF! -> 
A96: =INT(SkillConfig!#REF!) ->  | B96: =SkillConfig!#REF! ->  | C96: =SkillConfig!#REF! ->  | D96: =SkillConfig!#REF! -> 
A97: =INT(SkillConfig!#REF!) ->  | B97: =SkillConfig!#REF! ->  | C97: =SkillConfig!#REF! ->  | D97: =SkillConfig!#REF! -> 
A98: =INT(SkillConfig!#REF!) ->  | B98: =SkillConfig!#REF! ->  | C98: =SkillConfig!#REF! ->  | D98: =SkillConfig!#REF! -> 
A99: =INT(SkillConfig!#REF!) ->  | B99: =SkillConfig!#REF! ->  | C99: =SkillConfig!#REF! ->  | D99: =SkillConfig!#REF! -> 
A100: =INT(SkillConfig!#REF!) ->  | B100: =SkillConfig!#REF! ->  | C100: =SkillConfig!#REF! ->  | D100: =SkillConfig!#REF! -> 
A101: =INT(SkillConfig!#REF!) ->  | B101: =SkillConfig!#REF! ->  | C101: =SkillConfig!#REF! ->  | D101: =SkillConfig!#REF! -> 
A102: =INT(SkillConfig!#REF!) ->  | B102: =SkillConfig!#REF! ->  | C102: =SkillConfig!#REF! ->  | D102: =SkillConfig!#REF! -> 
A103: =INT(SkillConfig!#REF!) ->  | B103: =SkillConfig!#REF! ->  | C103: =SkillConfig!#REF! ->  | D103: =SkillConfig!#REF! -> 
A104: =INT(SkillConfig!#REF!) ->  | B104: =SkillConfig!#REF! ->  | C104: =SkillConfig!#REF! ->  | D104: =SkillConfig!#REF! -> 
A105: =INT(SkillConfig!#REF!) ->  | B105: =SkillConfig!#REF! ->  | C105: =SkillConfig!#REF! ->  | D105: =SkillConfig!#REF! -> 
A106: =INT(SkillConfig!#REF!) ->  | B106: =SkillConfig!#REF! ->  | C106: =SkillConfig!#REF! ->  | D106: =SkillConfig!#REF! -> 
A107: =INT(SkillConfig!#REF!) ->  | B107: =SkillConfig!#REF! ->  | C107: =SkillConfig!#REF! ->  | D107: =SkillConfig!#REF! -> 
A108: =INT(SkillConfig!#REF!) ->  | B108: =SkillConfig!#REF! ->  | C108: =SkillConfig!#REF! ->  | D108: =SkillConfig!#REF! -> 
A109: =INT(SkillConfig!#REF!) ->  | B109: =SkillConfig!#REF! ->  | C109: =SkillConfig!#REF! ->  | D109: =SkillConfig!#REF! -> 
A110: =INT(SkillConfig!#REF!) ->  | B110: =SkillConfig!#REF! ->  | C110: =SkillConfig!#REF! ->  | D110: =SkillConfig!#REF! -> 
A111: =INT(SkillConfig!#REF!) ->  | B111: =SkillConfig!#REF! ->  | C111: =SkillConfig!#REF! ->  | D111: =SkillConfig!#REF! -> 
A112: =INT(SkillConfig!#REF!) ->  | B112: =SkillConfig!#REF! ->  | C112: =SkillConfig!#REF! ->  | D112: =SkillConfig!#REF! -> 
A113: =INT(SkillConfig!#REF!) ->  | B113: =SkillConfig!#REF! ->  | C113: =SkillConfig!#REF! ->  | D113: =SkillConfig!#REF! -> 
A114: =INT(SkillConfig!#REF!) ->  | B114: =SkillConfig!#REF! ->  | C114: =SkillConfig!#REF! ->  | D114: =SkillConfig!#REF! -> 
A115: =INT(SkillConfig!#REF!) ->  | B115: =SkillConfig!#REF! ->  | C115: =SkillConfig!#REF! ->  | D115: =SkillConfig!#REF! -> 
A116: =INT(SkillConfig!#REF!) ->  | B116: =SkillConfig!#REF! ->  | C116: =SkillConfig!#REF! ->  | D116: =SkillConfig!#REF! -> 
A117: =INT(SkillConfig!#REF!) ->  | B117: =SkillConfig!#REF! ->  | C117: =SkillConfig!#REF! ->  | D117: =SkillConfig!#REF! -> 
A118: =INT(SkillConfig!#REF!) ->  | B118: =SkillConfig!#REF! ->  | C118: =SkillConfig!#REF! ->  | D118: =SkillConfig!#REF! -> 
A119: =INT(SkillConfig!#REF!) ->  | B119: =SkillConfig!#REF! ->  | C119: =SkillConfig!#REF! ->  | D119: =SkillConfig!#REF! -> 
A120: =INT(SkillConfig!#REF!) ->  | B120: =SkillConfig!#REF! ->  | C120: =SkillConfig!#REF! ->  | D120: =SkillConfig!#REF! -> 
A121: =INT(SkillConfig!#REF!) ->  | B121: =SkillConfig!#REF! ->  | C121: =SkillConfig!#REF! ->  | D121: =SkillConfig!#REF! -> 
A122: =INT(SkillConfig!#REF!) ->  | B122: =SkillConfig!#REF! ->  | C122: =SkillConfig!#REF! ->  | D122: =SkillConfig!#REF! -> 
A123: =INT(SkillConfig!#REF!) ->  | B123: =SkillConfig!#REF! ->  | C123: =SkillConfig!#REF! ->  | D123: =SkillConfig!#REF! -> 
A124: =INT(SkillConfig!#REF!) ->  | B124: =SkillConfig!#REF! ->  | C124: =SkillConfig!#REF! ->  | D124: =SkillConfig!#REF! -> 
A125: =INT(SkillConfig!#REF!) ->  | B125: =SkillConfig!#REF! ->  | C125: =SkillConfig!#REF! ->  | D125: =SkillConfig!#REF! -> 
A126: =INT(SkillConfig!#REF!) ->  | B126: =SkillConfig!#REF! ->  | C126: =SkillConfig!#REF! ->  | D126: =SkillConfig!#REF! -> 
A127: =INT(SkillConfig!#REF!) ->  | B127: =SkillConfig!#REF! ->  | C127: =SkillConfig!#REF! ->  | D127: =SkillConfig!#REF! -> 
A128: =INT(SkillConfig!#REF!) ->  | B128: =SkillConfig!#REF! ->  | C128: =SkillConfig!#REF! ->  | D128: =SkillConfig!#REF! -> 
A129: =INT(SkillConfig!#REF!) ->  | B129: =SkillConfig!#REF! ->  | C129: =SkillConfig!#REF! ->  | D129: =SkillConfig!#REF! -> 
A130: =INT(SkillConfig!#REF!) ->  | B130: =SkillConfig!#REF! ->  | C130: =SkillConfig!#REF! ->  | D130: =SkillConfig!#REF! -> 
A131: =INT(SkillConfig!#REF!) ->  | B131: =SkillConfig!#REF! ->  | C131: =SkillConfig!#REF! ->  | D131: =SkillConfig!#REF! -> 
A132: =INT(SkillConfig!#REF!) ->  | B132: =SkillConfig!#REF! ->  | C132: =SkillConfig!#REF! ->  | D132: =SkillConfig!#REF! -> 
A133: =INT(SkillConfig!#REF!) ->  | B133: =SkillConfig!#REF! ->  | C133: =SkillConfig!#REF! ->  | D133: =SkillConfig!#REF! -> 
A134: =INT(SkillConfig!#REF!) ->  | B134: =SkillConfig!#REF! ->  | C134: =SkillConfig!#REF! ->  | D134: =SkillConfig!#REF! -> 
A135: =INT(SkillConfig!#REF!) ->  | B135: =SkillConfig!#REF! ->  | C135: =SkillConfig!#REF! ->  | D135: =SkillConfig!#REF! -> 
A136: =INT(SkillConfig!#REF!) ->  | B136: =SkillConfig!#REF! ->  | C136: =SkillConfig!#REF! ->  | D136: =SkillConfig!#REF! -> 
A137: =INT(SkillConfig!#REF!) ->  | B137: =SkillConfig!#REF! ->  | C137: =SkillConfig!#REF! ->  | D137: =SkillConfig!#REF! -> 
A138: =INT(SkillConfig!#REF!) ->  | B138: =SkillConfig!#REF! ->  | C138: =SkillConfig!#REF! ->  | D138: =SkillConfig!#REF! -> 
A139: =INT(SkillConfig!#REF!) ->  | B139: =SkillConfig!#REF! ->  | C139: =SkillConfig!#REF! ->  | D139: =SkillConfig!#REF! -> 
A140: =INT(SkillConfig!#REF!) ->  | B140: =SkillConfig!#REF! ->  | C140: =SkillConfig!#REF! ->  | D140: =SkillConfig!#REF! -> 
A141: =INT(SkillConfig!#REF!) ->  | B141: =SkillConfig!#REF! ->  | C141: =SkillConfig!#REF! ->  | D141: =SkillConfig!#REF! -> 
A142: =INT(SkillConfig!#REF!) ->  | B142: =SkillConfig!#REF! ->  | C142: =SkillConfig!#REF! ->  | D142: =SkillConfig!#REF! -> 
A143: =INT(SkillConfig!#REF!) ->  | B143: =SkillConfig!#REF! ->  | C143: =SkillConfig!#REF! ->  | D143: =SkillConfig!#REF! -> 
A144: =INT(SkillConfig!#REF!) ->  | B144: =SkillConfig!#REF! ->  | C144: =SkillConfig!#REF! ->  | D144: =SkillConfig!#REF! -> 
A145: =INT(SkillConfig!#REF!) ->  | B145: =SkillConfig!#REF! ->  | C145: =SkillConfig!#REF! ->  | D145: =SkillConfig!#REF! -> 
A146: =INT(SkillConfig!#REF!) ->  | B146: =SkillConfig!#REF! ->  | C146: =SkillConfig!#REF! ->  | D146: =SkillConfig!#REF! -> 
A147: =INT(SkillConfig!#REF!) ->  | B147: =SkillConfig!#REF! ->  | C147: =SkillConfig!#REF! ->  | D147: =SkillConfig!#REF! -> 
A148: =INT(SkillConfig!#REF!) ->  | B148: =SkillConfig!#REF! ->  | C148: =SkillConfig!#REF! ->  | D148: =SkillConfig!#REF! -> 
A149: =INT(SkillConfig!#REF!) ->  | B149: =SkillConfig!#REF! ->  | C149: =SkillConfig!#REF! ->  | D149: =SkillConfig!#REF! -> 
A150: =INT(SkillConfig!#REF!) ->  | B150: =SkillConfig!#REF! ->  | C150: =SkillConfig!#REF! ->  | D150: =SkillConfig!#REF! -> 
A151: =INT(SkillConfig!#REF!) ->  | B151: =SkillConfig!#REF! ->  | C151: =SkillConfig!#REF! ->  | D151: =SkillConfig!#REF! -> 
A152: =INT(SkillConfig!#REF!) ->  | B152: =SkillConfig!#REF! ->  | C152: =SkillConfig!#REF! ->  | D152: =SkillConfig!#REF! -> 
A153: =INT(SkillConfig!#REF!) ->  | B153: =SkillConfig!#REF! ->  | C153: =SkillConfig!#REF! ->  | D153: =SkillConfig!#REF! -> 
A154: =INT(SkillConfig!#REF!) ->  | B154: =SkillConfig!#REF! ->  | C154: =SkillConfig!#REF! ->  | D154: =SkillConfig!#REF! -> 
A155: =INT(SkillConfig!#REF!) ->  | B155: =SkillConfig!#REF! ->  | C155: =SkillConfig!#REF! ->  | D155: =SkillConfig!#REF! -> 
A156: =INT(SkillConfig!#REF!) ->  | B156: =SkillConfig!#REF! ->  | C156: =SkillConfig!#REF! ->  | D156: =SkillConfig!#REF! -> 
A157: =INT(SkillConfig!#REF!) ->  | B157: =SkillConfig!#REF! ->  | C157: =SkillConfig!#REF! ->  | D157: =SkillConfig!#REF! -> 
A158: =INT(SkillConfig!#REF!) ->  | B158: =SkillConfig!#REF! ->  | C158: =SkillConfig!#REF! ->  | D158: =SkillConfig!#REF! -> 
A159: =INT(SkillConfig!#REF!) ->  | B159: =SkillConfig!#REF! ->  | C159: =SkillConfig!#REF! ->  | D159: =SkillConfig!#REF! -> 
A160: =INT(SkillConfig!#REF!) ->  | B160: =SkillConfig!#REF! ->  | C160: =SkillConfig!#REF! ->  | D160: =SkillConfig!#REF! -> 
A161: =INT(SkillConfig!#REF!) ->  | B161: =SkillConfig!#REF! ->  | C161: =SkillConfig!#REF! ->  | D161: =SkillConfig!#REF! -> 
A162: =INT(SkillConfig!#REF!) ->  | B162: =SkillConfig!#REF! ->  | C162: =SkillConfig!#REF! ->  | D162: =SkillConfig!#REF! -> 
A163: =INT(SkillConfig!#REF!) ->  | B163: =SkillConfig!#REF! ->  | C163: =SkillConfig!#REF! ->  | D163: =SkillConfig!#REF! -> 
A164: =INT(SkillConfig!#REF!) ->  | B164: =SkillConfig!#REF! ->  | C164: =SkillConfig!#REF! ->  | D164: =SkillConfig!#REF! -> 
A165: =INT(SkillConfig!#REF!) ->  | B165: =SkillConfig!#REF! ->  | C165: =SkillConfig!#REF! ->  | D165: =SkillConfig!#REF! -> 
A166: =INT(SkillConfig!#REF!) ->  | B166: =SkillConfig!#REF! ->  | C166: =SkillConfig!#REF! ->  | D166: =SkillConfig!#REF! -> 
A167: =INT(SkillConfig!#REF!) ->  | B167: =SkillConfig!#REF! ->  | C167: =SkillConfig!#REF! ->  | D167: =SkillConfig!#REF! -> 
A168: =INT(SkillConfig!#REF!) ->  | B168: =SkillConfig!#REF! ->  | C168: =SkillConfig!#REF! ->  | D168: =SkillConfig!#REF! -> 
A169: =INT(SkillConfig!#REF!) ->  | B169: =SkillConfig!#REF! ->  | C169: =SkillConfig!#REF! ->  | D169: =SkillConfig!#REF! -> 
A170: =INT(SkillConfig!#REF!) ->  | B170: =SkillConfig!#REF! ->  | C170: =SkillConfig!#REF! ->  | D170: =SkillConfig!#REF! -> 
A171: =INT(SkillConfig!#REF!) ->  | B171: =SkillConfig!#REF! ->  | C171: =SkillConfig!#REF! ->  | D171: =SkillConfig!#REF! -> 
A172: =INT(SkillConfig!#REF!) ->  | B172: =SkillConfig!#REF! ->  | C172: =SkillConfig!#REF! ->  | D172: =SkillConfig!#REF! -> 
A173: =INT(SkillConfig!#REF!) ->  | B173: =SkillConfig!#REF! ->  | C173: =SkillConfig!#REF! ->  | D173: =SkillConfig!#REF! -> 
A174: =INT(SkillConfig!#REF!) ->  | B174: =SkillConfig!#REF! ->  | C174: =SkillConfig!#REF! ->  | D174: =SkillConfig!#REF! -> 
A175: =INT(SkillConfig!#REF!) ->  | B175: =SkillConfig!#REF! ->  | C175: =SkillConfig!#REF! ->  | D175: =SkillConfig!#REF! -> 
A176: =INT(SkillConfig!#REF!) ->  | B176: =SkillConfig!#REF! ->  | C176: =SkillConfig!#REF! ->  | D176: =SkillConfig!#REF! -> 
A177: =INT(SkillConfig!#REF!) ->  | B177: =SkillConfig!#REF! ->  | C177: =SkillConfig!#REF! ->  | D177: =SkillConfig!#REF! -> 
A178: =INT(SkillConfig!#REF!) ->  | B178: =SkillConfig!#REF! ->  | C178: =SkillConfig!#REF! ->  | D178: =SkillConfig!#REF! -> 
A179: =INT(SkillConfig!#REF!) ->  | B179: =SkillConfig!#REF! ->  | C179: =SkillConfig!#REF! ->  | D179: =SkillConfig!#REF! -> 
A180: =INT(SkillConfig!#REF!) ->  | B180: =SkillConfig!#REF! ->  | C180: =SkillConfig!#REF! ->  | D180: =SkillConfig!#REF! -> 
A181: =INT(SkillConfig!#REF!) ->  | B181: =SkillConfig!#REF! ->  | C181: =SkillConfig!#REF! ->  | D181: =SkillConfig!#REF! -> 
A182: =INT(SkillConfig!#REF!) ->  | B182: =SkillConfig!#REF! ->  | C182: =SkillConfig!#REF! ->  | D182: =SkillConfig!#REF! -> 
A183: =INT(SkillConfig!#REF!) ->  | B183: =SkillConfig!#REF! ->  | C183: =SkillConfig!#REF! ->  | D183: =SkillConfig!#REF! -> 
A184: =INT(SkillConfig!#REF!) ->  | B184: =SkillConfig!#REF! ->  | C184: =SkillConfig!#REF! ->  | D184: =SkillConfig!#REF! -> 
A185: =INT(SkillConfig!#REF!) ->  | B185: =SkillConfig!#REF! ->  | C185: =SkillConfig!#REF! ->  | D185: =SkillConfig!#REF! -> 
A186: =INT(SkillConfig!#REF!) ->  | B186: =SkillConfig!#REF! ->  | C186: =SkillConfig!#REF! ->  | D186: =SkillConfig!#REF! -> 
A187: =INT(SkillConfig!#REF!) ->  | B187: =SkillConfig!#REF! ->  | C187: =SkillConfig!#REF! ->  | D187: =SkillConfig!#REF! -> 
A188: =INT(SkillConfig!#REF!) ->  | B188: =SkillConfig!#REF! ->  | C188: =SkillConfig!#REF! ->  | D188: =SkillConfig!#REF! -> 
A189: =INT(SkillConfig!#REF!) ->  | B189: =SkillConfig!#REF! ->  | C189: =SkillConfig!#REF! ->  | D189: =SkillConfig!#REF! -> 
A190: =INT(SkillConfig!#REF!) ->  | B190: =SkillConfig!#REF! ->  | C190: =SkillConfig!#REF! ->  | D190: =SkillConfig!#REF! -> 
A191: =INT(SkillConfig!#REF!) ->  | B191: =SkillConfig!#REF! ->  | C191: =SkillConfig!#REF! ->  | D191: =SkillConfig!#REF! -> 
A192: =INT(SkillConfig!#REF!) ->  | B192: =SkillConfig!#REF! ->  | C192: =SkillConfig!#REF! ->  | D192: =SkillConfig!#REF! -> 
A193: =INT(SkillConfig!#REF!) ->  | B193: =SkillConfig!#REF! ->  | C193: =SkillConfig!#REF! ->  | D193: =SkillConfig!#REF! -> 
A194: =INT(SkillConfig!#REF!) ->  | B194: =SkillConfig!#REF! ->  | C194: =SkillConfig!#REF! ->  | D194: =SkillConfig!#REF! -> 
A195: =INT(SkillConfig!#REF!) ->  | B195: =SkillConfig!#REF! ->  | C195: =SkillConfig!#REF! ->  | D195: =SkillConfig!#REF! -> 
A196: =INT(SkillConfig!#REF!) ->  | B196: =SkillConfig!#REF! ->  | C196: =SkillConfig!#REF! ->  | D196: =SkillConfig!#REF! -> 
A197: =INT(SkillConfig!#REF!) ->  | B197: =SkillConfig!#REF! ->  | C197: =SkillConfig!#REF! ->  | D197: =SkillConfig!#REF! -> 
A198: =INT(SkillConfig!#REF!) ->  | B198: =SkillConfig!#REF! ->  | C198: =SkillConfig!#REF! ->  | D198: =SkillConfig!#REF! -> 
A199: =INT(SkillConfig!#REF!) ->  | B199: =SkillConfig!#REF! ->  | C199: =SkillConfig!#REF! ->  | D199: =SkillConfig!#REF! -> 
A200: =INT(SkillConfig!#REF!) ->  | B200: =SkillConfig!#REF! ->  | C200: =SkillConfig!#REF! ->  | D200: =SkillConfig!#REF! -> 
... 881 more rows

Sheet 特殊ID段
A2: 1-98 | B2: 怪物词缀
A3: 1000-2000 | B3: 神器效果
A4: 英雄ID+技能类型+等级 | B4: 英雄技能
A5: 怪物ID+技能类型+等级 | B5: 怪物技能

Sheet 技能评分基准
A1: 编号 | B1: 类型 | D1: 叠加个数（超过后不在有新效果） | E1: 效果值 | F1: 衰弱% | G1: 1层价值 | H1: 2层价值 | I1: 3层价值 | J1: 4层价值 | K1: 5层价值 | N1: 普通速度(秒) | O1: 双倍速度(秒) | Q1: 大招(能量点数) | R1: 绝对强度修正 | S1: 相对强度修正 | T1: 英雄num | U1: 小招(秒) | V1: 绝对强度修正 | W1: 相对强度修正 | Y1: 减益BUFF多层衰减情况 | AD1: 价值
A2: 100101 | B2: 弱化 | C2: 秒伤降低{0}%秒伤 | D2: 5 | E2: 15 | F2: 20 | G2: =ROUND(AD$3,0) -> 25 | H2: =ROUND(AD$4,0) -> 45 | I2: =ROUND(AD$5,0) -> 61 | J2: =ROUND(AD$6,0) -> 74 | K2: =ROUND(AD$7,0) -> 84 | M2: 大招 | N2: 24 | O2: 16 | Q2: 120 | R2: =Q2*R$14/Q$14 -> 0.5 | S2: =R2^0.74 -> 0.5987393523 | T2: =COUNTIF(SkillConfig!#REF!,技能评分基准!Q2)/3 ->  | U2: 0 | V2: =U2*V$14/U$14 -> 0 | W2: =V2^0.74 -> 0 | Y2: 层数 | Z2: 基础值 | AA2: 0.8 | AB2: 每层实际值 | AC2: 累加值
A3: 100201 | B3: 虚弱 | C3: 最终伤害降低{0}% | D3: 5 | E3: 15 | F3: 20 | G3: 25 | H3: =ROUND(AD$4,0) -> 45 | I3: =ROUND(AD$5,0) -> 61 | J3: =ROUND(AD$6,0) -> 74 | K3: =ROUND(AD$7,0) -> 84 | M3: 小招 | N3: 9 | O3: 6 | Q3: 130 | R3: 0.5416666667 | S3: =R3^0.74 -> 0.6352749956 | T3: =COUNTIF(SkillConfig!#REF!,技能评分基准!Q3)/3 ->  | U3: 1 | V3: 0.1111111111 | W3: 0.196725448 | Y3: 1 | Z3: 14.87 | AA3: =AA$2^(Y3-1) -> 1 | AB3: =Z3*AA3 -> 14.87 | AC3: =SUM(AB3:AB$3) -> 14.87 | AD3: 25
A4: 100301 | B4: 破甲 | C4: 防御力降低{0}% | D4: 5 | E4: 15 | F4: 20 | G4: 25 | H4: =ROUND(AD$4,0) -> 45 | I4: =ROUND(AD$5,0) -> 61 | J4: =ROUND(AD$6,0) -> 74 | K4: =ROUND(AD$7,0) -> 84 | M4: 普攻 | N4: 2.25 | O4: 1.5 | Q4: 140 | R4: 0.5833333333 | S4: 0.6710863844 | T4: =COUNTIF(SkillConfig!#REF!,技能评分基准!Q4)/3 ->  | U4: 2 | V4: 0.2222222222 | W4: 0.3285660902 | Y4: 2 | Z4: =Z3 -> 14.87 | AA4: =AA$2^(Y4-1) -> 0.8 | AB4: =Z4*AA4 -> 11.896 | AC4: =SUM(AB$3:AB4) -> 26.766 | AD4: =AC4*AD$3/AC$3 -> 45
A5: 100401 | B5: 易伤 | C5: 受到伤害增加{0}% | D5: 5 | E5: 15 | F5: 20 | G5: 25 | H5: =ROUND(AD$4,0) -> 45 | I5: =ROUND(AD$5,0) -> 61 | J5: =ROUND(AD$6,0) -> 74 | K5: =ROUND(AD$7,0) -> 84 | Q5: 150 | R5: 0.625 | S5: 0.7062382134 | T5: =COUNTIF(SkillConfig!#REF!,技能评分基准!Q5)/3 ->  | U5: 3 | V5: 0.3333333333 | W5: 0.4435374257 | Y5: 3 | Z5: =Z4 -> 14.87 | AA5: =AA$2^(Y5-1) -> 0.64 | AB5: =Z5*AA5 -> 9.5168 | AC5: =SUM(AB$3:AB5) -> 36.2828 | AD5: =AC5*AD$3/AC$3 -> 61
A6: 100501 | B6: 禁疗 | C6: 降低{0}%受治疗效果 | D6: 5 | E6: 15 | F6: 20 | G6: 25 | H6: =ROUND(AD$4,0) -> 45 | I6: =ROUND(AD$5,0) -> 61 | J6: =ROUND(AD$6,0) -> 74 | K6: =ROUND(AD$7,0) -> 84 | N6: 攻击/s | O6: 0.75 | Q6: 160 | R6: 0.6666666667 | S6: 0.7407854921 | T6: =COUNTIF(SkillConfig!#REF!,技能评分基准!Q6)/3 ->  | U6: 4 | V6: 0.4444444444 | W6: 0.5487631452 | Y6: 4 | Z6: =Z5 -> 14.87 | AA6: =AA$2^(Y6-1) -> 0.512 | AB6: =Z6*AA6 -> 7.61344 | AC6: =SUM(AB$3:AB6) -> 43.89624 | AD6: =AC6*AD$3/AC$3 -> 73.8
A7: 100601 | B7: 寒冰 | C7: 移动速度降低{0}%，使其最高移动速度不超过{1}m/s | D7: 1 | E7: 30;2 | F7: 0 | G7: 25 | N7: 攻血比（开始） | O7: 1比60 | Q7: 170 | R7: 0.7083333333 | S7: 0.7747755071 | T7: =COUNTIF(SkillConfig!#REF!,技能评分基准!Q7)/3 ->  | U7: 5 | V7: 0.5555555556 | W7: 0.6472891781 | Y7: 5 | Z7: =Z6 -> 14.87 | AA7: =AA$2^(Y7-1) -> 0.4096 | AB7: =Z7*AA7 -> 6.090752 | AC7: =SUM(AB$3:AB7) -> 49.986992 | AD7: =AC7*AD$3/AC$3 -> 84.04
A8: 100701 | B8: 冻伤 | C8: 护盾额外受到{0}%伤害 | D8: 1 | E8: 50 | F8: 0 | G8: =ROUND(AD$3,0) -> 25 | N8: 攻血比（最终） | O8: 1比90 | Q8: 180 | R8: 0.75 | S8: 0.8082492958 | T8: =COUNTIF(SkillConfig!#REF!,技能评分基准!Q8)/3 ->  | U8: 6 | V8: =U8*V$14/U$14 -> 0.6666666667 | W8: =V8^0.74 -> 0.7407854921
A9: 100801 | B9: 感电 | C9: 攻速提升{0}% | D9: 10 | E9: 0.3 | F9: 0 | G9: 3 | Q9: 190 | R9: 0.7916666667 | S9: 0.8412427721 | T9: =COUNTIF(SkillConfig!#REF!,技能评分基准!Q9)/3 ->  | U9: 6.5 | V9: 0.7222222222 | W9: 0.7859889255 | Y9: 增益BUFF多层衰减情况
A10: 101001 | B10: 致盲 | C10: 命中降低{0}% | D10: 5 | E10: 30 | F10: 20 | G10: 25 | H10: =ROUND(AD$4,0) -> 45 | I10: =ROUND(AD$5,0) -> 61 | J10: =ROUND(AD$6,0) -> 74 | K10: =ROUND(AD$7,0) -> 84 | N10: 等价表 | Q10: 200 | R10: 0.8333333333 | S10: 0.8737876012 | T10: =COUNTIF(SkillConfig!#REF!,技能评分基准!Q10)/3 ->  | U10: 7 | V10: 0.7777777778 | W10: 0.8302962809 | Y10: 层数 | Z10: 基础值 | AA10: 0.8 | AB10: 每层实际值 | AC10: 累加值
A11: 101101 | B11: 迟疑 | C11: 攻速降低{0}% | D11: 5 | E11: 15 | F11: 20 | G11: 25 | H11: 45 | I11: 61 | J11: 74 | K11: 84 | N11: 攻击 | O11: 100 | Q11: 210 | R11: 0.875 | S11: 0.9059118889 | T11: =COUNTIF(SkillConfig!#REF!,技能评分基准!Q11)/3 ->  | U11: 7.5 | V11: 0.8333333333 | W11: 0.8737876012 | Y11: 1 | Z11: 29.75 | AA11: =AA$2^(Y11-1) -> 1 | AB11: =Z11*AA11 -> 29.75 | AC11: =SUM(AB$11:AB11) -> 29.75
A12: 101201 | B12: 焦躁 | C12: 暴击下降{0}% | D12: 5 | E12: 15 | F12: 20 | G12: 25 | H12: 45 | I12: 61 | J12: 74 | K12: 84 | N12: 威力 | O12: 100 | Q12: 220 | R12: 0.9166666667 | S12: 0.9376407313 | T12: =COUNTIF(SkillConfig!#REF!,技能评分基准!Q12)/3 ->  | U12: 8 | V12: 0.8888888889 | W12: 0.9165309464 | Y12: 2 | Z12: =Z11 -> 29.75 | AA12: =AA$2^(Y12-1) -> 0.8 | AB12: =Z12*AA12 -> 23.8 | AC12: =SUM(AB$11:AB12) -> 53.55
A13: 101301 | B13: 超重 | C13: 无法堆叠 | D13: 1 | E13: -1 | F13: 0 | G13: 25 | N13: 秒伤 | O13: 25 | Q13: 230 | R13: 0.9583333333 | S13: 0.9689966593 | T13: =COUNTIF(SkillConfig!#REF!,技能评分基准!Q13)/3 ->  | U13: 8.5 | V13: 0.9444444444 | W13: 0.9585848217 | Y13: 3 | Z13: =Z12 -> 29.75 | AA13: =AA$2^(Y13-1) -> 0.64 | AB13: =Z13*AA13 -> 19.04 | AC13: =SUM(AB$11:AB13) -> 72.59
A14: 101401 | B14: 沉默 | C14: 无法使用大招 | D14: 1 | E14: -1 | F14: 0 | G14: 25 | N14: 防御 | O14: 100 | Q14: 240 | R14: 1 | S14: 1 | T14: =COUNTIF(SkillConfig!#REF!,技能评分基准!Q14)/3 ->  | U14: 9 | V14: 1 | W14: 1 | Y14: 4 | Z14: =Z13 -> 29.75 | AA14: =AA$2^(Y14-1) -> 0.512 | AB14: =Z14*AA14 -> 15.232 | AC14: =SUM(AB$11:AB14) -> 87.822
A15: 101501 | B15: 减速 | C15: 移动速度减少{0}% | D15: 5 | E15: 15 | F15: 20 | G15: 25 | H15: 45 | I15: 61 | J15: 74 | K15: 84 | N15: 生命 | O15: 1000 | Q15: 250 | R15: =Q15*R$14/Q$14 -> 1.041666667 | S15: 1.030669175 | T15: =COUNTIF(SkillConfig!#REF!,技能评分基准!Q15)/3 ->  | U15: 9.5 | V15: =U15*V$14/U$14 -> 1.055555556 | W15: =V15^0.74 -> 1.040820916 | Y15: 5 | Z15: =Z14 -> 29.75 | AA15: =AA$2^(Y15-1) -> 0.4096 | AB15: =Z15*AA15 -> 12.1856 | AC15: =SUM(AB$11:AB15) -> 100.0076
A16: 101601 | B16: 标记 | C16: 闪避降低{0}% | D16: 5 | E16: 15 | F16: 20 | G16: 25 | H16: 45 | I16: 61 | J16: 74 | K16: 84 | Q16: 260 | R16: 1.083333333 | S16: 1.061020949 | T16: =COUNTIF(SkillConfig!#REF!,技能评分基准!Q16)/3 ->  | U16: 10 | V16: 1.111111111 | W16: 1.081086746
A17: 101701 | B17: 燃烧 | C17: 每损失基于施法者{0}%秒伤的生命 | D17: 1 | E17: 50 | F17: 0 | G17: 25 | Q17: 270 | R17: 1.125 | S17: 1.091070633 | T17: =COUNTIF(SkillConfig!#REF!,技能评分基准!Q17)/3 ->  | U17: 10.5 | V17: 1.166666667 | W17: 1.120832265
A18: 102201 | B18: 爆裂 | C18: 受到技能伤害时，其首段伤害转化成一次{0}%爆炸伤害 | D18: 1 | E18: 75;3 | F18: 0 | G18: 25 | Q18: 280 | R18: 1.166666667 | S18: 1.120832265 | T18: =COUNTIF(SkillConfig!#REF!,技能评分基准!Q18)/3 ->  | U18: 11 | V18: 1.222222222 | W18: 1.160088522
A19: 101901 | B19: 眩晕 | C19: 无法移动，无法攻击，无法释放技能 | D19: 1 | E19: -1 | F19: 0 | G19: 25 | H19: =ROUND(AD$4,0) -> 45 | I19: =ROUND(AD$5,0) -> 61 | J19: =ROUND(AD$6,0) -> 74 | K19: =ROUND(AD$7,0) -> 84 | Q19: 290 | R19: 1.208333333 | S19: 1.150318752 | T19: =COUNTIF(SkillConfig!#REF!,技能评分基准!Q19)/3 ->  | U19: 11.5 | V19: 1.277777778 | W19: 1.198883394
A20: 102001 | B20: 禁锢 | C20: 无法移动 | D20: 1 | E20: -1 | F20: 0 | G20: 25 | Q20: 300 | R20: 1.25 | S20: 1.179542001 | T20: =COUNTIF(SkillConfig!#REF!,技能评分基准!Q20)/3 ->  | U20: 12 | V20: 1.333333333 | W20: 1.237242031
A21: 102101 | B21: 停滞 | C21: 期间大招无法充能 | D21: 1 | E21: -1 | F21: 0 | G21: 25 | Q21: 310 | R21: 1.291666667 | S21: 1.208513023 | T21: =COUNTIF(SkillConfig!#REF!,技能评分基准!Q21)/3 ->  | U21: 12.5 | V21: 1.388888889 | W21: 1.275187223
A22: 102301 | B22: 压制 | C22: 压制，不能不任何事 | D22: 1 | E22: -1 | F22: 0 | G22: 25 | Q22: 320 | R22: 1.333333333 | S22: 1.237242031 | T22: =COUNTIF(SkillConfig!#REF!,技能评分基准!Q22)/3 ->  | U22: 13 | V22: 1.444444444 | W22: 1.312739713
A23: 200101 | B23: 强力 | C23: 秒伤增加{0}% | D23: 5 | E23: 15 | F23: 20 | G23: 25 | H23: 45 | I23: 61 | J23: 74 | K23: 84 | Q23: 330 | R23: 1.375 | S23: 1.265738519 | T23: =COUNTIF(SkillConfig!#REF!,技能评分基准!Q23)/3 ->  | U23: 13.5 | V23: =U23*V$14/U$14 -> 1.5 | W23: =V23^0.74 -> 1.349918446
A24: 200201 | B24: 增伤 | C24: 最终伤害增加{0}% | D24: 5 | E24: 15 | F24: 20 | G24: 25 | H24: 45 | I24: 61 | J24: 74 | K24: 84 | Q24: 340 | R24: 1.416666667 | S24: 1.294011332 | T24: =COUNTIF(SkillConfig!#REF!,技能评分基准!Q24)/3 ->  | U24: 14 | V24: 1.555555556 | W24: 1.386740787
A25: 200301 | B25: 防御 | C25: 防御力增加{0}% | D25: 5 | E25: 15 | F25: 20 | G25: 25 | H25: 45 | I25: 61 | J25: 74 | K25: 84 | Q25: 350 | R25: 1.458333333 | S25: 1.322068732 | T25: =COUNTIF(SkillConfig!#REF!,技能评分基准!Q25)/3 ->  | U25: 14.5 | V25: 1.611111111 | W25: 1.423222709
A26: 200401 | B26: 免伤 | C26: 受到伤害减少{0}% | D26: 5 | E26: 15 | F26: 20 | G26: 25 | H26: 45 | I26: 61 | J26: 74 | K26: 84 | Q26: 360 | R26: 1.5 | S26: 1.349918446 | T26: =COUNTIF(SkillConfig!#REF!,技能评分基准!Q26)/3 ->  | U26: 15 | V26: 1.666666667 | W26: 1.45937894
A27: 200701 | B27: 祝福 | C27: 受治疗效果增加{0}%受治疗效果 | D27: 5 | E27: 10 | F27: 20 | G27: 25 | H27: 45 | I27: 61 | J27: 74 | K27: 84
A28: 200801 | B28: 无敌 | C28: 免疫控制，免疫伤害 | D28: 1 | E28: -1 | F28: 0 | G28: 25
A29: 200901 | B29: 霸体 | C29: 期间免疫控制，免疫debuff | D29: 1 | E29: -1 | F29: 0 | G29: 25
A30: 201001 | B30: 狂暴 | C30: 攻速增加{0}% | D30: 5 | E30: 25 | F30: 20 | G30: 25 | H30: 45 | I30: 61 | J30: 74 | K30: 84
A31: 201201 | B31: 暴击 | C31: 暴击率提升{0}% | D31: 5 | E31: 15 | F31: 20 | G31: 25 | H31: 45 | I31: 61 | J31: 74 | K31: 84
A32: 201301 | B32: 锁定 | C32: 被敌人优先攻击 | D32: 1 | E32: -1 | F32: 0 | G32: 25
A33: 201401 | B33: 闪避 | C33: 闪避提升{0}% | D33: 5 | E33: 15 | F33: 20 | G33: 25 | H33: 45 | I33: 61 | J33: 74 | K33: 84
A34: 201501 | B34: 吸血 | C34: 吸血提升{0}% | D34: 5 | E34: 10 | F34: 20 | G34: 25 | H34: 45 | I34: 61 | J34: 74 | K34: 84
A35: 201801 | B35: 隐身 | C35: 不能被选取，无法被敌人作为目标选取到 | D35: 1 | E35: -1 | F35: 0 | G35: 25
A36: 202001 | B36: 免控 | C36: 期间免疫控制 | D36: 1 | E36: -1 | F36: 0 | G36: 25
A37: 202101 | B37: 冻结 | C37: 无法行动，护盾额外受到{0}%伤害 | D37: 1 | E37: 100 | F37: 0 | G37: 25
A38: 202201 | B38: 焚烧 | C38: 受到技能的每段伤害时，立即被施加并结算一次【燃烧】 | D38: 1 | E38: -1 | F38: 0 | G38: 25
A39: 202301 | B39: 加速 | C39: 移动速度提升{0}% | D39: 5 | E39: 15 | F39: 20 | G39: 25 | H39: 45 | I39: 61 | J39: 74 | K39: 84
A40: 202401 | B40: 冰甲 | C40: 拥有护盾效果，且免疫减益效果。 | D40: 5 | E40: 15 | F40: 20 | G40: 25 | H40: 45 | I40: 61 | J40: 74 | K40: 84
A41: 202501 | B41: 标记 | C41: boss90300的标记buff | D41: 5 | E41: 15 | F41: 20 | G41: 25 | H41: 45 | I41: 61 | J41: 74 | K41: 84
A42: 202601 | B42: 风行 | C42: 免疫所有负面位移 | D42: 5 | E42: 15 | F42: 20 | G42: 25 | H42: 45 | I42: 61 | J42: 74 | K42: 84
D44: 1层价值 | E44: 2层价值 | F44: 3层价值 | G44: 4层价值 | H44: 5层价值 | I44: 作用1人 | J44: 作用2人 | K44: 作用多人
B45: 可叠加增减益 | D45: =IF(D59="","",D59*$D$55) -> 18.75 | E45: =IF(E59="","",E59*$D$55) -> 33.75 | F45: 45.75 | G45: 55.35 | H45: 63.03 | I45: 0.75 | J45: 1.2 | K45: 1.65
B46: 控制&反控 | D46: =IF(D60="","",D60*$D$55) -> 30 | I46: 0.75 | J46: 1.2 | K46: 1.65
D47: 1段伤害 | E47: 2段伤害 | F47: 3段伤害 | G47: 4段伤害 | H47: 5段伤害 | I47: 6段伤害 | J47: 作用1人 | K47: 作用2人 | L47: 作用3人 | M47: 作用4人 | N47: 作用5人 | O47: 作用6+人
B48: 伤害 | C48: 总伤害 | D48: =IF(D62="","",D62*$D$55) -> 0.75 | E48: =IF(E62="","",E62*$D$55) -> 0.7725 | F48: 0.795 | G48: 0.8175 | H48: 0.84 | I48: 0.8625 | J48: 0.75 | K48: 0.39 | L48: 0.27 | M48: 0.21 | N48: 0.1725 | O48: 0.15
C49: 段数 | D49: 1 | E49: 2 | F49: 3 | G49: 4 | H49: 5 | I49: 6
D50: =IF(D64="","",D64*$D$55) -> 0.75 | E50: 0.825 | F50: 0.9 | G50: 0.975 | H50: 1.05 | I50: 1.125
C51: 地面模式 | D51: 0.75 | E51: 0.7725 | F51: 0.795 | G51: 0.8175 | H51: 0.84 | I51: 0.8625
C53: 治疗量系数 | D53: 1.1
C54: 护盾量系数 | D54: 1.3
C55: 技能伤害系数 | D55: 0.75
D58: 1层价值 | E58: 2层价值 | F58: 3层价值 | G58: 4层价值 | H58: 5层价值 | I58: 作用1人 | J58: 作用2人 | K58: 作用多人
B59: 可叠加增减益 | D59: =AD3 -> 25 | E59: =AD4 -> 45 | F59: =AD5 -> 61 | G59: =AD6 -> 73.8 | H59: =AD7 -> 84.04 | I59: 1 | J59: 1.6 | K59: 2.2
B60: 控制&反控 | D60: 40 | I60: 1 | J60: 1.6 | K60: 2.2
D61: 1段伤害 | E61: 2段伤害 | F61: 3段伤害 | G61: 4段伤害 | H61: 5段伤害 | I61: 6段伤害 | J61: 作用1人 | K61: 作用2人 | L61: 作用3人 | M61: 作用4人 | N61: 作用5人 | O61: 作用6+人 | Q61: 1 | R61: 100 | S61: =R61/Q61 -> 100
B62: 伤害 | C62: 总伤害 | D62: 1 | E62: 1.03 | F62: 1.06 | G62: 1.09 | H62: 1.12 | I62: 1.15 | J62: 1 | K62: 0.52 | L62: 0.36 | M62: 0.28 | N62: 0.23 | O62: 0.2 | Q62: 2 | R62: 104 | S62: =R62/Q62 -> 52
C63: 段数 | D63: 1 | E63: 2 | F63: 3 | G63: 4 | H63: 5 | I63: 6 | Q63: 3 | R63: 108 | S63: 36
D64: 1 | E64: 1.1 | F64: 1.2 | G64: 1.3 | H64: 1.4 | I64: 1.5 | Q64: 4 | R64: 112 | S64: 28
C65: 地面模式 | D65: 1 | E65: 1.03 | F65: 1.06 | G65: 1.09 | H65: 1.12 | I65: 1.15 | Q65: 5 | R65: 115 | S65: 23
Q66: 6 | R66: 120 | S66: 20
